bitfinex/quotes_SOLUSD_20230112
["timestamp","ask_amount","ask_price","bid_price","bid_amount"]
[1673540913086,46.75,16.046,16.031,20.0]
[1673540913735,116.1245,16.047,16.032,20.0]
[1673540914251,116.1245,16.047,16.033,20.0]
[1673540914462,116.1245,16.047,16.034,20.0]
[1673540914666,303.5245,16.047,16.034,20.0]
[1673540914880,234.15,16.046,16.034,20.0]
[1673540915205,20.0,16.045,16.03,20.0]
[1673540915520,20.0,16.043,16.03,20.0]
[1673540915730,46.76,16.042,16.03,20.0]
[1673540916347,46.75,16.043,16.03,20.0]
[1673540916577,20.0,16.043,16.03,20.0]
[1673540919935,17.0,16.042,16.03,20.0]
[1673540920783,63.76,16.042,16.03,20.0]
[1673540921190,20.0,16.041,16.03,20.0]
[1673540921933,251.16,16.042,16.03,20.0]
[1673540922457,20.0,16.041,16.03,20.0]
[1673540922784,46.76,16.042,16.03,20.0]
[1673540922966,20.0,16.043,16.03,20.0]
[1673540923596,46.75,16.044,16.03,20.0]
[1673540924041,46.75,16.044,16.031,20.0]
[1673540924228,46.75,16.044,16.032,20.0]
[1673540924438,66.75,16.045,16.032,20.0]
[1673540925722,66.75,16.045,16.031,20.0]
[1673540926150,46.75,16.045,16.031,20.0]
[1673540926336,254.15,16.046,16.031,20.0]
[1673540926673,66.75,16.046,16.031,20.0]
[1673540927949,254.15,16.046,16.031,20.0]
[1673540928160,254.15,16.046,16.03,20.0]
[1673540928474,254.15,16.046,16.031,20.0]
[1673540929298,46.75,16.046,16.031,20.0]
[1673540929623,116.1245,16.047,16.031,20.0]
[1673540930231,46.74,16.048,16.031,20.0]
[1673540930452,187.4,16.054,16.032,10.1841941]
[1673540930453,46.72,16.053,16.032,10.1841941]
[1673540930661,46.72,16.053,16.033,41.66]
[1673540930886,234.12,16.054,16.034,20.0]
[1673540931080,20.0,16.053,16.035,20.0]
[1673540931294,46.73,16.052,16.036,20.0]
[1673540931499,46.73,16.052,16.037,20.0]
[1673540931722,46.73,16.052,16.037,136.1712]
[1673540931931,46.73,16.052,16.038,20.0]
[1673540932143,46.73,16.052,16.039,20.0]
[1673540932758,46.72,16.053,16.039,20.0]
[1673540933306,234.12,16.053,16.039,20.0]
[1673540933718,224.4,16.052,16.039,20.0]
[1673540933931,20.0,16.05,16.039,20.0]
[1673540934142,46.73,16.051,16.039,20.0]
[1673540934988,46.72,16.053,16.039,20.0]
[1673540936252,234.12,16.053,16.039,20.0]
[1673540936444,17.0,16.052,16.039,20.0]
[1673540936654,234.13,16.051,16.039,20.0]
[1673540936983,20.0,16.049,16.039,20.0]
[1673540937202,254.14,16.049,16.037,116.1712]
[1673540937391,17.0,16.048,16.03,20.0]
[1673540937602,20.0,16.046,16.03,20.0]
[1673540937807,46.75,16.045,16.03,20.0]
[1673540938783,46.75,16.046,16.031,20.0]
[1673540938974,46.74,16.047,16.032,20.0]
[1673540939186,46.74,16.047,16.033,20.0]
[1673540939613,46.72,16.053,16.033,52.4941941]
[1673540939820,20.0,16.052,16.034,20.0]
[1673540940023,20.0,16.052,16.035,20.0]
[1673540940239,46.72,16.053,16.035,30.1841941]
[1673540940444,46.72,16.055,16.04,17.75]
[1673540940655,46.71,16.059,16.041,43.31]
[1673540940872,20.0,16.063,16.042,20.0]
[1673540941195,88.8,16.06,16.043,20.0]
[1673540941516,88.8,16.06,16.042,10.70463429]
[1673540941517,234.11,16.059,16.042,10.70463429]
[1673540941707,234.11,16.059,16.038,112.9963]
[1673540941922,20.0,16.058,16.039,30.70463429]
[1673540942237,20.0,16.058,16.04,10.70463429]
[1673540942238,20.0,16.056,16.04,10.70463429]
[1673540942442,46.71,16.057,16.04,10.70463429]
[1673540942647,234.11,16.057,16.04,10.70463429]
[1673540942872,20.0,16.056,16.038,112.9963]
[1673540943077,20.0,16.054,16.039,20.0]
[1673540944243,20.0,16.054,16.039,30.70463429]
[1673540944445,66.72,16.055,16.039,30.70463429]
[1673540944662,20.0,16.055,16.04,20.0]
[1673540944872,20.0,16.056,16.04,20.0]
[1673540945074,46.72,16.055,16.041,20.0]
[1673540945499,46.71,16.057,16.041,20.0]
[1673540945705,46.71,16.057,16.042,20.0]
[1673540945915,46.71,16.057,16.043,20.0]
[1673540946120,46.71,16.058,16.044,20.0]
[1673540946336,46.71,16.059,16.044,20.0]
[1673540946546,46.71,16.059,16.045,20.0]
[1673540947070,234.11,16.059,16.045,20.0]
[1673540947287,17.0,16.058,16.045,20.0]
[1673540947498,234.11,16.057,16.045,20.0]
[1673540947819,20.0,16.056,16.04,37.75]
[1673540948137,46.72,16.055,16.041,20.0]
[1673540948452,46.71,16.057,16.041,20.0]
[1673540948643,46.71,16.057,16.041,30.70463429]
[1673540948853,46.71,16.057,16.042,20.0]
[1673540950131,20.0,16.056,16.042,20.0]
[1673540950957,63.72,16.055,16.042,20.0]
[1673540951165,20.0,16.054,16.04,20.0]
[1673540951815,20.0,16.054,16.039,40.0]
[1673540952227,20.0,16.054,16.039,20.0]
[1673540953597,20.0,16.054,16.04,10.70463429]
[1673540953800,20.0,16.054,16.041,20.0]
[1673540954339,20.0,16.054,16.041,30.70463429]
[1673540954748,46.72,16.055,16.041,30.70463429]
[1673540954959,46.72,16.055,16.041,20.0]
[1673540955175,20.0,16.054,16.039,30.70463429]
[1673540956239,20.0,16.054,16.04,20.0]
[1673540956661,20.0,16.054,16.041,10.70463429]
[1673540956871,17.0,16.053,16.042,20.0]
[1673540957099,20.0,16.052,16.039,20.0]
[1673540957500,20.0,16.052,16.04,10.70463429]
[1673540957701,46.72,16.053,16.041,20.0]
[1673540957913,66.72,16.056,16.041,20.0]
[1673540958126,66.72,16.056,16.042,10.70463429]
[1673540958338,46.72,16.056,16.043,20.0]
[1673540958750,46.72,16.056,16.043,30.70463429]
[1673540961094,234.12,16.056,16.043,30.70463429]
[1673540961292,17.0,16.055,16.043,30.70463429]
[1673540961493,17.0,16.055,16.043,20.0]
[1673540961703,66.72,16.054,16.04,10.70463429]
[1673540961914,66.72,16.054,16.041,20.0]
[1673540962252,66.72,16.054,16.041,30.70463429]
[1673540963188,66.72,16.056,16.041,30.70463429]
[1673540963403,254.12,16.056,16.041,30.70463429]
[1673540963617,20.0,16.054,16.041,30.70463429]
[1673540964869,66.72,16.056,16.041,30.70463429]
[1673540965295,254.12,16.056,16.041,30.70463429]
[1673540965492,20.0,16.054,16.041,30.70463429]
[1673540965705,66.72,16.054,16.041,30.70463429]
[1673540965927,66.72,16.054,16.041,41.40926858]
[1673540966239,66.72,16.054,16.041,20.0]
[1673540966557,20.0,16.052,16.041,20.0]
[1673540966750,46.73,16.051,16.039,20.0]
[1673540966959,66.73,16.052,16.039,20.0]
[1673540967482,20.0,16.05,16.039,20.0]
[1673540967698,46.74,16.049,16.039,20.0]
[1673540967909,20.0,16.05,16.039,20.0]
[1673540968126,46.73,16.051,16.039,20.0]
[1673540968352,46.73,16.051,16.04,10.70463429]
[1673540968562,46.73,16.051,16.041,20.0]
[1673540969178,46.73,16.051,16.039,20.0]
[1673540969386,20.0,16.05,16.039,20.0]
[1673540969604,46.74,16.049,16.039,20.0]
[1673540969914,20.0,16.05,16.039,20.0]
[1673540970123,234.14,16.049,16.036,108.2399]
[1673540970338,234.14,16.049,16.031,9.605]
[1673540970339,17.0,16.048,16.031,115.2217]
[1673540970536,20.0,16.045,16.031,115.2217]
[1673540970745,63.75,16.044,16.031,115.2217]
[1673540971174,251.15,16.044,16.031,115.2217]
[1673540971582,20.0,16.043,16.032,20.0]
[1673540971794,20.0,16.041,16.032,20.0]
[1673540972232,43.46,16.04,16.03,20.0]
[1673540972444,20.0,16.039,16.03,20.0]
[1673540972630,20.0,16.039,16.029,119.3054]
[1673540972840,46.76,16.04,16.029,119.3054]
[1673540973494,46.76,16.042,16.029,119.3054]
[1673540973702,17.0,16.041,16.029,119.3054]
[1673540973906,46.76,16.04,16.03,20.0]
[1673540974119,234.16,16.042,16.031,20.0]
[1673540974331,17.0,16.041,16.03,20.0]
[1673540974521,46.39,16.04,16.01,502.44]
[1673540974735,20.0,16.038,16.024,10.70463429]
[1673540975155,17.0,16.037,16.024,10.70463429]
[1673540975387,20.0,16.036,16.024,10.70463429]
[1673540976005,17.0,16.035,16.024,10.70463429]
[1673540976214,234.18,16.034,16.02,114.2076]
[1673540976543,20.0,16.032,16.021,10.70463429]
[1673540977594,20.0,16.032,16.022,20.0]
[1673540977990,20.0,16.032,16.022,30.70463429]
[1673540979484,17.0,16.031,16.022,30.70463429]
[1673540980434,20.0,16.036,16.022,30.70463429]
[1673540981042,46.77,16.037,16.022,30.70463429]
[1673540981251,66.76,16.041,16.022,30.70463429]
[1673540981582,66.76,16.041,16.023,20.0]
[1673540981583,20.0,16.041,16.023,20.0]
[1673540981796,20.0,16.043,16.024,20.0]
[1673540982002,20.0,16.043,16.025,20.0]
[1673540982325,20.0,16.043,16.027,20.0]
[1673540982635,20.0,16.043,16.028,30.70463429]
[1673540982848,66.75,16.043,16.028,30.70463429]
[1673540983036,20.0,16.043,16.029,10.70463429]
[1673540983247,20.0,16.043,16.03,20.0]
[1673540983682,20.0,16.043,16.031,30.70463429]
[1673540983883,66.75,16.045,16.031,10.70463429]
[1673540984100,66.75,16.045,16.032,30.70463429]
[1673540984513,66.75,16.045,16.032,20.0]
[1673540984719,17.0,16.044,16.031,20.0]
[1673540985682,17.0,16.044,16.03,20.0]
[1673540986426,20.0,16.043,16.03,20.0]
[1673540986736,17.0,16.042,16.03,20.0]
[1673540987367,20.0,16.041,16.03,20.0]
[1673540987574,20.0,16.041,16.028,20.0]
[1673540988006,46.76,16.042,16.029,10.52771112]
[1673540988225,66.75,16.043,16.03,20.0]
[1673540989068,254.15,16.043,16.03,20.0]
[1673540989290,20.0,16.041,16.03,20.0]
[1673540989683,254.15,16.043,16.03,20.0]
[1673540989898,17.0,16.042,16.03,20.0]
[1673540990754,66.75,16.043,16.03,20.0]
[1673540991066,20.0,16.043,16.03,20.0]
[1673540991798,66.75,16.044,16.03,20.0]
[1673540993986,66.75,16.044,16.03,30.52771112]
[1673540994745,46.75,16.044,16.03,30.52771112]
[1673540994956,20.0,16.045,16.031,20.0]
[1673540995143,20.0,16.045,16.032,20.0]
[1673540995351,20.0,16.045,16.032,30.52771112]
[1673540995664,20.0,16.045,16.033,10.52771112]
[1673540995889,20.0,16.045,16.034,20.0]
[1673540997453,17.0,16.044,16.034,20.0]
[1673540997682,46.75,16.043,16.03,20.0]
[1673540997890,20.0,16.041,16.03,20.0]
[1673540999247,17.0,16.042,16.03,30.52771112]
[1673540999568,20.0,16.043,16.03,30.52771112]
[1673540999774,46.75,16.045,16.03,30.52771112]
[1673540999985,46.75,16.046,16.031,10.52771112]
[1673541000315,46.75,16.046,16.033,20.0]
[1673541000522,17.77,16.05,16.034,20.0]
[1673541000733,234.12,16.054,16.034,147.53571112]
[1673541000927,234.12,16.054,16.035,10.52771112]
[1673541001144,20.0,16.053,16.037,20.0]
[1673541001464,20.0,16.053,16.038,118.6145]
[1673541001673,46.73,16.052,16.039,20.0]
[1673541001890,17.0,16.051,16.039,20.0]
[1673541002084,20.0,16.051,16.039,20.0]
[1673541002512,46.73,16.052,16.039,20.0]
[1673541002955,20.0,16.053,16.039,20.0]
[1673541003583,20.0,16.053,16.039,30.52771112]
[1673541003771,234.12,16.054,16.039,20.0]
[1673541004099,46.72,16.054,16.041,20.0]
[1673541004312,46.71,16.058,16.042,20.0]
[1673541004507,17.77,16.06,16.042,30.52771112]
[1673541004716,17.77,16.06,16.043,10.52771112]
[1673541004717,17.27,16.06,16.043,10.52771112]
[1673541004955,46.71,16.059,16.044,20.0]
[1673541005130,20.0,16.058,16.044,20.0]
[1673541005344,46.71,16.057,16.044,30.52771112]
[1673541005575,20.0,16.058,16.044,30.52771112]
[1673541006732,46.71,16.059,16.044,30.52771112]
[1673541006928,46.7,16.062,16.044,30.52771112]
[1673541007134,46.7,16.063,16.044,73.79920841]
[1673541007363,66.69,16.064,16.05,17.67]
[1673541007566,17.52,16.07,16.051,20.0]
[1673541007567,160.931,16.065,16.051,20.0]
[1673541008200,207.4,16.064,16.046,20.0]
[1673541008511,46.7,16.063,16.049,10.52771112]
[1673541008726,46.7,16.063,16.05,20.0]
[1673541009348,46.69,16.064,16.05,20.0]
[1673541009693,46.69,16.064,16.05,135.2036]
[1673541010094,20.0,16.063,16.05,135.2036]
[1673541010851,46.69,16.064,16.05,152.8136]
[1673541011048,46.68,16.067,16.052,20.0]
[1673541011372,46.68,16.067,16.053,20.0]
[1673541011579,17.51,16.07,16.053,20.0]
[1673541011898,46.67,16.073,16.054,10.52771112]
[1673541012084,46.67,16.073,16.055,20.0]
[1673541012085,17.6,16.07,16.055,20.0]
[1673541012301,17.6,16.07,16.05,115.2036]
[1673541012302,234.08,16.069,16.05,115.2036]
[1673541012529,20.0,16.068,16.05,115.2036]
[1673541012737,234.08,16.067,16.05,115.2036]
[1673541012931,17.0,16.066,16.05,115.2036]
[1673541013256,66.69,16.065,16.05,115.2036]
[1673541013464,46.69,16.065,16.05,115.2036]
[1673541013679,46.68,16.069,16.05,186.67280841]
[1673541013890,46.67,16.072,16.051,20.0]
[1673541014305,46.67,16.072,16.052,10.52771112]
[1673541014525,46.67,16.073,16.053,20.0]
[1673541014747,234.07,16.073,16.053,20.0]
[1673541014925,234.07,16.073,16.054,20.0]
[1673541015135,234.07,16.073,16.055,20.0]
[1673541015790,234.07,16.073,16.055,30.52771112]
[1673541015981,234.07,16.073,16.057,20.0]
[1673541016312,46.67,16.073,16.06,17.6]
[1673541016528,46.65,16.077,16.061,20.0]
[1673541016733,20.0,16.076,16.061,30.20949696]
[1673541016937,234.06,16.075,16.061,20.0]
[1673541017180,234.06,16.075,16.06,20.0]
[1673541017780,20.0,16.074,16.059,20.0]
[1673541017977,187.4,16.072,16.059,20.0]
[1673541018196,46.67,16.071,16.059,30.20949696]
[1673541018416,187.4,16.074,16.059,20.0]
[1673541018627,187.4,16.072,16.059,20.0]
[1673541018840,46.67,16.071,16.059,20.0]
[1673541019028,20.0,16.07,16.059,20.0]
[1673541019240,46.67,16.071,16.059,20.0]
[1673541019566,17.0,16.07,16.059,20.0]
[1673541019980,37.0,16.07,16.059,20.0]
[1673541020190,17.0,16.07,16.059,20.0]
[1673541020516,46.68,16.069,16.059,20.0]
[1673541020831,46.66,16.074,16.061,20.0]
[1673541021235,46.66,16.074,16.062,20.0]
[1673541021440,46.66,16.075,16.062,30.20949696]
[1673541023033,20.0,16.075,16.062,30.20949696]
[1673541023245,46.66,16.074,16.063,10.20949696]
[1673541023443,46.66,16.076,16.064,20.0]
[1673541023653,43.78438309,16.076,16.064,20.0]
[1673541024078,20.0,16.075,16.062,20.0]
[1673541024287,234.06,16.074,16.061,20.0]
[1673541024497,20.0,16.073,16.061,20.0]
[1673541024708,63.67,16.072,16.061,20.0]
[1673541024921,20.0,16.071,16.061,20.0]
[1673541025352,20.0,16.071,16.061,30.20949696]
[1673541025756,20.0,16.071,16.061,20.0]
[1673541025980,20.0,16.071,16.059,20.0]
[1673541028270,20.0,16.071,16.058,78.5757]
[1673541028271,20.0,16.069,16.058,78.5757]
[1673541028482,20.0,16.069,16.05,17.61]
[1673541028483,63.68,16.068,16.05,17.61]
[1673541028914,20.0,16.067,16.05,17.61]
[1673541030808,20.0,16.065,16.05,17.61]
[1673541031127,20.0,16.065,16.051,20.0]
[1673541031879,187.4,16.063,16.051,20.0]
[1673541032064,234.1,16.062,16.051,20.0]
[1673541032275,17.53,16.06,16.048,20.0]
[1673541032484,46.71,16.059,16.048,20.0]
[1673541033023,20.0,16.058,16.048,20.0]
[1673541035751,20.0,16.058,16.041,119.8291]
[1673541035959,187.4,16.056,16.041,119.8291]
[1673541036179,234.12,16.055,16.041,119.8291]
[1673541036393,17.0,16.054,16.041,119.8291]
[1673541036607,46.72,16.053,16.041,119.8291]
[1673541036825,20.0,16.056,16.041,130.03859696]
[1673541037131,63.72,16.055,16.041,119.8291]
[1673541037334,20.0,16.054,16.041,119.8291]
[1673541037749,20.0,16.054,16.041,130.03859696]
[1673541039117,20.0,16.054,16.042,20.0]
[1673541039329,17.0,16.053,16.042,20.0]
[1673541039739,20.0,16.052,16.042,20.0]
[1673541039950,17.0,16.051,16.039,20.0]
[1673541040686,20.0,16.05,16.039,20.0]
[1673541041528,17.0,16.051,16.039,20.0]
[1673541042156,20.0,16.052,16.039,20.0]
[1673541042371,20.0,16.056,16.039,30.20949696]
[1673541042589,66.71,16.057,16.04,17.6]
[1673541042590,20.0,16.057,16.04,17.6]
[1673541042801,66.71,16.059,16.041,40.0]
[1673541043014,20.0,16.059,16.041,10.20949696]
[1673541043323,207.4,16.056,16.038,113.5267]
[1673541043544,46.72,16.055,16.038,113.5267]
[1673541043854,20.0,16.054,16.038,113.5267]
[1673541044060,20.0,16.054,16.039,20.0]
[1673541045220,20.0,16.054,16.039,29.90090582]
[1673541045829,20.0,16.054,16.04,20.0]
[1673541046251,20.0,16.056,16.04,20.0]
[1673541046695,234.11,16.057,16.041,20.0]
[1673541046902,187.4,16.058,16.041,20.0]
[1673541047096,46.71,16.059,16.041,29.90090582]
[1673541047434,46.69,16.064,16.042,20.0]
[1673541047829,130.3254,16.065,16.043,181.21660311]
[1673541048064,110.3254,16.065,16.044,20.96]
[1673541048368,110.3254,16.065,16.044,112.80199015]
[1673541048584,110.3254,16.065,16.046,20.0]
[1673541048795,110.3254,16.065,16.047,20.0]
[1673541048982,110.3254,16.065,16.047,73.17240311]
[1673541049195,17.0,16.064,16.048,29.90662858]
[1673541049403,17.0,16.064,16.049,20.0]
[1673541049614,110.3254,16.065,16.049,20.0]
[1673541049833,110.3254,16.065,16.05,108.0442]
[1673541050042,110.3254,16.065,16.051,20.0]
[1673541050477,110.3254,16.065,16.052,20.0]
[1673541050692,110.3254,16.065,16.053,20.0]
[1673541052375,46.68,16.068,16.054,9.90662858]
[1673541052565,46.67,16.072,16.056,20.0]
[1673541052774,46.67,16.072,16.056,128.4831]
[1673541053103,46.67,16.072,16.058,20.0]
[1673541053516,46.67,16.072,16.06,20.0]
[1673541053740,46.67,16.072,16.061,20.0]
[1673541054695,46.67,16.073,16.061,20.0]
[1673541054908,234.07,16.073,16.061,20.0]
[1673541055629,17.0,16.072,16.061,20.0]
[1673541056777,234.07,16.073,16.061,20.0]
[1673541056778,46.67,16.073,16.061,20.0]
[1673541057208,115.7379,16.074,16.061,20.0]
[1673541059727,234.07,16.073,16.061,20.0]
[1673541059931,20.0,16.071,16.061,20.0]
[1673541060157,20.0,16.071,16.058,20.0]
[1673541060351,20.0,16.071,16.059,20.0]
[1673541060557,73.09,16.07,16.055,20.0]
[1673541060766,90.09,16.07,16.048,424.543]
[1673541060989,187.4,16.069,16.049,112.4998]
[1673541061313,20.0,16.066,16.049,112.4998]
[1673541061499,251.09,16.065,16.049,112.4998]
[1673541062156,20.0,16.064,16.05,20.0]
[1673541062351,63.7,16.063,16.05,20.0]
[1673541063414,20.0,16.059,16.05,20.0]
[1673541063621,66.71,16.059,16.05,20.0]
[1673541064019,66.71,16.059,16.049,112.4998]
[1673541064228,20.0,16.057,16.041,20.0]
[1673541064444,46.72,16.056,16.042,9.90662858]
[1673541064676,234.11,16.058,16.042,9.90662858]
[1673541065522,20.0,16.057,16.042,9.90662858]
[1673541065832,46.72,16.056,16.042,9.90662858]
[1673541066241,46.72,16.056,16.041,20.0]
[1673541066453,46.72,16.056,16.041,29.90662858]
[1673541066668,46.72,16.056,16.042,20.0]
[1673541067299,187.4,16.055,16.042,20.0]
[1673541067504,66.72,16.054,16.042,20.0]
[1673541067715,66.72,16.054,16.041,20.0]
[1673541071515,46.72,16.054,16.041,20.0]
[1673541071826,133.95842265,16.08,16.041,20.0]
[1673541071827,46.72,16.056,16.041,29.90662858]
[1673541072024,234.1,16.063,16.042,19.35562858]
[1673541072234,20.0,16.062,16.044,20.0]
[1673541072448,46.7,16.061,16.045,20.0]
[1673541072656,20.0,16.06,16.045,20.0]
[1673541073279,20.0,16.058,16.045,20.0]
[1673541074032,20.0,16.058,16.043,9.90662858]
[1673541074033,20.0,16.058,16.044,20.0]
[1673541074775,46.71,16.057,16.043,20.0]
[1673541075300,46.71,16.057,16.044,20.0]
[1673541075506,46.7,16.061,16.044,20.0]
[1673541075700,26.41,16.06,16.045,9.90662858]
[1673541075913,46.71,16.059,16.046,20.0]
[1673541076125,20.0,16.058,16.043,20.0]
[1673541076763,46.71,16.059,16.044,20.0]
[1673541078239,20.0,16.058,16.044,20.0]
[1673541078457,46.71,16.059,16.044,20.0]
[1673541078948,46.69,16.064,16.045,9.90662858]
[1673541079161,46.69,16.064,16.046,20.0]
[1673541079399,46.69,16.064,16.047,20.0]
[1673541079596,254.08,16.069,16.05,26.41]
[1673541079795,187.4,16.069,16.051,14.47]
[1673541080009,46.67,16.073,16.052,20.0]
[1673541080337,46.67,16.073,16.054,20.0]
[1673541080547,234.07,16.073,16.054,20.0]
[1673541080751,234.07,16.073,16.055,20.0]
[1673541080960,234.07,16.073,16.056,20.0]
[1673541081177,234.07,16.073,16.057,20.0]
[1673541082334,20.0,16.072,16.057,20.0]
[1673541082549,46.67,16.071,16.057,20.0]
[1673541083158,66.67,16.072,16.057,20.0]
[1673541083372,46.67,16.072,16.057,20.0]
[1673541083581,132.42,16.07,16.057,20.0]
[1673541083797,132.42,16.07,16.041,58.66958704]
[1673541083798,187.4,16.068,16.048,133.7802]
[1673541084006,187.4,16.066,16.048,133.7802]
[1673541084328,46.69,16.065,16.05,132.0]
[1673541084643,46.67,16.073,16.05,132.16]
[1673541084835,17.0,16.072,16.051,31.62662858]
[1673541085041,46.67,16.071,16.051,31.62662858]
[1673541085257,46.67,16.071,16.052,29.90662858]
[1673541085676,46.67,16.071,16.054,20.0]
[1673541085888,17.0,16.07,16.055,20.0]
[1673541086101,46.68,16.069,16.055,20.0]
[1673541086316,17.0,16.068,16.055,20.0]
[1673541086638,234.08,16.07,16.055,136.3771]
[1673541086958,46.68,16.07,16.056,20.0]
[1673541087152,20.0,16.079,16.058,20.0]
[1673541087153,46.67,16.073,16.058,20.0]
[1673541087693,46.67,16.073,16.059,20.0]
[1673541087900,46.67,16.073,16.06,20.0]
[1673541088106,46.67,16.073,16.062,20.0]
[1673541088637,46.67,16.073,16.063,20.0]
[1673541090742,17.0,16.072,16.061,20.0]
[1673541090935,46.67,16.071,16.059,20.0]
[1673541091150,20.0,16.072,16.059,20.0]
[1673541091375,63.67,16.071,16.059,20.0]
[1673541091588,46.67,16.071,16.059,20.0]
[1673541092824,46.67,16.071,16.049,20.0]
[1673541092825,26.41,16.07,16.049,20.0]
[1673541093033,26.41,16.07,16.042,14.28]
[1673541093034,187.4,16.068,16.048,111.7946]
[1673541093249,271.08,16.067,16.048,111.7946]
[1673541093475,254.08,16.067,16.048,111.7946]
[1673541093906,254.08,16.067,16.049,20.0]
[1673541094834,17.0,16.066,16.049,20.0]
[1673541095046,20.0,16.064,16.049,20.0]
[1673541095270,46.7,16.063,16.048,131.7946]
[1673541095462,46.7,16.063,16.048,111.7946]
[1673541095671,20.0,16.062,16.048,111.7946]
[1673541095885,20.0,16.062,16.049,20.0]
[1673541096307,26.41,16.06,16.043,20.0]
[1673541096529,234.11,16.059,16.04,141.5851]
[1673541096740,251.11,16.059,16.04,141.5851]
[1673541096951,251.11,16.059,16.04,141.1951]
[1673541097141,20.0,16.058,16.04,151.10172858]
[1673541097357,46.71,16.057,16.04,151.10172858]
[1673541097783,20.0,16.056,16.041,20.0]
[1673541097989,20.0,16.054,16.041,20.0]
[1673541098209,46.72,16.053,16.041,20.0]
[1673541098419,46.72,16.053,16.04,114.9751]
[1673541099152,20.0,16.052,16.04,114.9751]
[1673541100229,20.0,16.052,16.041,20.0]
[1673541100521,17.0,16.051,16.036,20.0]
[1673541100719,187.4,16.049,16.032,128.4697]
[1673541100936,251.14,16.048,16.032,128.4697]
[1673541101140,46.73,16.051,16.033,20.0]
[1673541101352,46.73,16.051,16.034,20.0]
[1673541101668,66.71,16.058,16.04,26.23]
[1673541101877,66.71,16.059,16.041,20.0]
[1673541102315,20.0,16.057,16.041,20.0]
[1673541102525,46.72,16.056,16.041,20.0]
[1673541102947,20.0,16.055,16.041,20.0]
[1673541104710,17.0,16.054,16.041,20.0]
[1673541104952,20.0,16.052,16.037,20.0]
[1673541105256,251.13,16.051,16.036,20.0]
[1673541105785,26.41,16.05,16.036,20.0]
[1673541106101,20.0,16.048,16.036,20.0]